Workbook

Sheet калькулятор ДЭС
A1: КАЛЬКУЛЯТОР ВЫБОРА РЕКОМЕНДУЕМЫХ ДЭС ДЛЯ СТРОИТЕЛЬНЫХ НУЖД И ОРИЕНТИРОВОЧНЫЙ РАСЧЕТ ЗАТРАТ НА КОМПЕСАЦИЮ ВЫРАБОТАННОЙ ЭЛЕКТРОЭНЕРГИИ
A2: поля для заполнения | J2: ОБЪЕКТ:
A3: поля для выбора данных из выпадающего списка
A4: рекомендуемые показатели
A5: затраты организации
A7: ИСХОДНЫЕ ДАННЫЕ | I7: РЕКОМЕНДУЕМЫЕ МАРКИ ДИЗЕЛЕЙ | S7: Нормативная выработка в кВт*ч в месяц | AC7: Стоимость выработанной электроэнергии от ДЭС по тарифу за 1кВт: | AD7: Стоимость выработанной электроэнергии от существующих городских сетей по тарифу за 1кВт: | AE7: ВЫБОР РЕЗЕРВОЙ ДЭС ПО ПОС
A8: месяц | B8: кол-во дней в месяце | C8: кол-во рабочих часов в сутки | D8: кол-во рабочих часов в месяц | E8: Назначение | F8: Доп. Мощность от гор. сетей, кВт | G8: Требуется мощности на строй нужды по данным ТРН, кВт | H8: Итого мощности на строй нужды выделяется от ДЭС, кВт | I8: AKSA APD 16, 13кВт | J8: P33, 26кВт | K8: AKSA APD 44, 35кВт | L8: P88, 70кВт | M8: P110, 88кВт | N8: P135, 108кВт | O8: P250, 200кВт | P8: P350, 280кВт | Q8: P400, 320кВт | R8: P500, 400кВт | S8: AKSA APD 16, 13кВт | T8: P33, 26кВт | U8: AKSA APD 44, 35кВт | V8: P88, 70кВт | W8: P110, 88кВт | X8: P135, 108кВт | Y8: P250, 200кВт | Z8: P350, 280кВт | AA8: P400, 320кВт | AB8: P500, 400кВт | AE8: Wilson P135
I9: Допустимая нагрузка на ДЭС, кВт (70% от номинала) | S9: Допустимая нагрузка на ДЭС, кВт (70% от номинала) | AD9: при условии круглосуточного потребления (24часа) | AE9: стоимость 1 месяца резервной ДЭС согласно ПОС
I10: 9 | J10: 18 | K10: 25 | L10: 49 | M10: 62 | N10: 76 | O10: 140 | P10: 196 | Q10: 224 | R10: 280 | S10: 9 | T10: 18 | U10: 25 | V10: 49 | W10: 62 | X10: 76 | Y10: 140 | Z10: 196 | AA10: 224 | AB10: 280 | AD10: 24
I11: кВт | J11: кВт | K11: кВт | L11: кВт | M11: кВт | N11: кВт | O11: кВт | P11: кВт | Q11: кВт | R11: кВт | S11: кВт | T11: кВт | U11: кВт | V11: кВт | W11: кВт | X11: кВт | Y11: кВт | Z11: кВт | AA11: кВт | AB11: кВт | AC11: 4.21 | AD11: 4.21
A12: 2015-06-01 | B12: =DAY(EOMONTH(A12,0)) -> 30 | C12: 16 | D12: =$C$12*B12 -> 480 | E12: тех. нужды | F12: 9 | G12: =32.92+25.6+1.24+60.8 -> 120.56 | H12: =IF(E12="тех. Нужды",'ДЭС на тех.нужды'!$E$3,'ДЭС на тех.нужды+прогрев'!$E$3) -> 111 | I12: =IF(E12="тех. нужды", IF('ДЭС на тех.нужды'!$B$2=1,'ДЭС на тех.нужды'!$A$2,0),IF('ДЭС на тех.нужды+прогрев'!$B$2=1,'ДЭС на тех.нужды+прогрев'!$A$2,0)) -> 0 | J12: =IF(E12="тех. нужды", IF('ДЭС на тех.нужды'!$B$3=1,'ДЭС на тех.нужды'!$A$3,0),IF('ДЭС на тех.нужды+прогрев'!$B$3=1,'ДЭС на тех.нужды+прогрев'!$A$3,0)) -> 0 | K12: =IF(E12="тех. нужды", IF('ДЭС на тех.нужды'!$B$4=1,'ДЭС на тех.нужды'!$A$4,0),IF('ДЭС на тех.нужды+прогрев'!$B$4=1,'ДЭС на тех.нужды+прогрев'!$A$4,0)) -> 0 | L12: =IF(E12="тех. нужды", IF('ДЭС на тех.нужды'!$B$5=1,'ДЭС на тех.нужды'!$A$5,0),IF('ДЭС на тех.нужды+прогрев'!$B$5=1,'ДЭС на тех.нужды+прогрев'!$A$5,0)) -> 49 | M12: =IF(E12="тех. нужды", IF('ДЭС на тех.нужды'!$B$6=1,'ДЭС на тех.нужды'!$A$6,0),IF('ДЭС на тех.нужды+прогрев'!$B$6=1,'ДЭС на тех.нужды+прогрев'!$A$6,0)) -> 62 | N12: =IF(E12="тех. нужды", IF('ДЭС на тех.нужды'!$B$7=1,'ДЭС на тех.нужды'!$A$7,0),IF('ДЭС на тех.нужды+прогрев'!$B$7=1,'ДЭС на тех.нужды+прогрев'!$A$7,0)) -> 0 | O12: =IF(E12="тех. нужды", IF('ДЭС на тех.нужды'!$B$8=1,'ДЭС на тех.нужды'!$A$8,0),IF('ДЭС на тех.нужды+прогрев'!$B$8=1,'ДЭС на тех.нужды+прогрев'!$A$8,0)) -> 0 | P12: =IF(E12="тех. нужды", IF('ДЭС на тех.нужды'!$B$9=1,'ДЭС на тех.нужды'!$A$9,0),IF('ДЭС на тех.нужды+прогрев'!$B$9=1,'ДЭС на тех.нужды+прогрев'!$A$9,0)) -> 0 | Q12: =IF(E12="тех. нужды", IF('ДЭС на тех.нужды'!$B$10=1,'ДЭС на тех.нужды'!$A$10,0),IF('ДЭС на тех.нужды+прогрев'!$B$10=1,'ДЭС на тех.нужды+прогрев'!$A$10,0)) -> 0 | R12: =IF(E12="тех. нужды", IF('ДЭС на тех.нужды'!$B$11=1,'ДЭС на тех.нужды'!$A$11,0),IF('ДЭС на тех.нужды+прогрев'!$B$11=1,'ДЭС на тех.нужды+прогрев'!$A$11,0)) -> 0 | S12: =I12*$D$12 -> 0 | T12: =J12*$D$12 -> 0 | U12: 0 | V12: 23520 | W12: 29760 | X12: 0 | Y12: 0 | Z12: 0 | AA12: 0 | AB12: 0 | AC12: =SUM(S12:AB12)*$AC$11 -> 224308.8 | AD12: =$AD$10*B12*$AD$11*F12 -> 27280.8 | AE12: =ROUND(VLOOKUP($AE$8, 'исх данные'!$B$3:$D$12, 3,FALSE),2) -> 58000
A13: 2015-07-01 | B13: =DAY(EOMONTH(A13,0)) -> 31 | D13: =$C$12*B13 -> 496 | E13: тех. нужды | F13: 9 | G13: =32.92+25.6+1.24+60.8 -> 120.56 | H13: =IF(E13="тех. Нужды",'ДЭС на тех.нужды'!$E$3,'ДЭС на тех.нужды+прогрев'!$E$3) -> 111 | I13: =IF(E13="тех. нужды", IF('ДЭС на тех.нужды'!$B$2=1,'ДЭС на тех.нужды'!$A$2,0),IF('ДЭС на тех.нужды+прогрев'!$B$2=1,'ДЭС на тех.нужды+прогрев'!$A$2,0)) -> 0 | J13: =IF(E13="тех. нужды", IF('ДЭС на тех.нужды'!$B$3=1,'ДЭС на тех.нужды'!$A$3,0),IF('ДЭС на тех.нужды+прогрев'!$B$3=1,'ДЭС на тех.нужды+прогрев'!$A$3,0)) -> 0 | K13: =IF(E13="тех. нужды", IF('ДЭС на тех.нужды'!$B$4=1,'ДЭС на тех.нужды'!$A$4,0),IF('ДЭС на тех.нужды+прогрев'!$B$4=1,'ДЭС на тех.нужды+прогрев'!$A$4,0)) -> 0 | L13: =IF(E13="тех. нужды", IF('ДЭС на тех.нужды'!$B$5=1,'ДЭС на тех.нужды'!$A$5,0),IF('ДЭС на тех.нужды+прогрев'!$B$5=1,'ДЭС на тех.нужды+прогрев'!$A$5,0)) -> 49 | M13: =IF(E13="тех. нужды", IF('ДЭС на тех.нужды'!$B$6=1,'ДЭС на тех.нужды'!$A$6,0),IF('ДЭС на тех.нужды+прогрев'!$B$6=1,'ДЭС на тех.нужды+прогрев'!$A$6,0)) -> 62 | N13: =IF(E13="тех. нужды", IF('ДЭС на тех.нужды'!$B$7=1,'ДЭС на тех.нужды'!$A$7,0),IF('ДЭС на тех.нужды+прогрев'!$B$7=1,'ДЭС на тех.нужды+прогрев'!$A$7,0)) -> 0 | O13: =IF(E13="тех. нужды", IF('ДЭС на тех.нужды'!$B$8=1,'ДЭС на тех.нужды'!$A$8,0),IF('ДЭС на тех.нужды+прогрев'!$B$8=1,'ДЭС на тех.нужды+прогрев'!$A$8,0)) -> 0 | P13: =IF(E13="тех. нужды", IF('ДЭС на тех.нужды'!$B$9=1,'ДЭС на тех.нужды'!$A$9,0),IF('ДЭС на тех.нужды+прогрев'!$B$9=1,'ДЭС на тех.нужды+прогрев'!$A$9,0)) -> 0 | Q13: =IF(E13="тех. нужды", IF('ДЭС на тех.нужды'!$B$10=1,'ДЭС на тех.нужды'!$A$10,0),IF('ДЭС на тех.нужды+прогрев'!$B$10=1,'ДЭС на тех.нужды+прогрев'!$A$10,0)) -> 0 | R13: =IF(E13="тех. нужды", IF('ДЭС на тех.нужды'!$B$11=1,'ДЭС на тех.нужды'!$A$11,0),IF('ДЭС на тех.нужды+прогрев'!$B$11=1,'ДЭС на тех.нужды+прогрев'!$A$11,0)) -> 0 | S13: =I13*$D$13 -> 0 | T13: =J13*$D$13 -> 0 | U13: 0 | V13: 24304 | W13: 30752 | X13: 0 | Y13: 0 | Z13: 0 | AA13: 0 | AB13: 0 | AC13: =SUM(S13:AB13)*$AC$11 -> 231785.76 | AD13: =$AD$10*B13*$AD$11*F13 -> 28190.16 | AE13: =ROUND(VLOOKUP($AE$8, 'исх данные'!$B$3:$D$12, 3,FALSE),2) -> 58000
A14: 2015-08-01 | B14: =DAY(EOMONTH(A14,0)) -> 31 | D14: 496 | E14: тех. нужды | F14: 9 | G14: =32.92+25.6+1.24+60.8 -> 120.56 | H14: =IF(E14="тех. Нужды",'ДЭС на тех.нужды'!$E$3,'ДЭС на тех.нужды+прогрев'!$E$3) -> 111 | I14: =IF(E14="тех. нужды", IF('ДЭС на тех.нужды'!$B$2=1,'ДЭС на тех.нужды'!$A$2,0),IF('ДЭС на тех.нужды+прогрев'!$B$2=1,'ДЭС на тех.нужды+прогрев'!$A$2,0)) -> 0 | J14: =IF(E14="тех. нужды", IF('ДЭС на тех.нужды'!$B$3=1,'ДЭС на тех.нужды'!$A$3,0),IF('ДЭС на тех.нужды+прогрев'!$B$3=1,'ДЭС на тех.нужды+прогрев'!$A$3,0)) -> 0 | K14: =IF(E14="тех. нужды", IF('ДЭС на тех.нужды'!$B$4=1,'ДЭС на тех.нужды'!$A$4,0),IF('ДЭС на тех.нужды+прогрев'!$B$4=1,'ДЭС на тех.нужды+прогрев'!$A$4,0)) -> 0 | L14: =IF(E14="тех. нужды", IF('ДЭС на тех.нужды'!$B$5=1,'ДЭС на тех.нужды'!$A$5,0),IF('ДЭС на тех.нужды+прогрев'!$B$5=1,'ДЭС на тех.нужды+прогрев'!$A$5,0)) -> 49 | M14: =IF(E14="тех. нужды", IF('ДЭС на тех.нужды'!$B$6=1,'ДЭС на тех.нужды'!$A$6,0),IF('ДЭС на тех.нужды+прогрев'!$B$6=1,'ДЭС на тех.нужды+прогрев'!$A$6,0)) -> 62 | N14: =IF(E14="тех. нужды", IF('ДЭС на тех.нужды'!$B$7=1,'ДЭС на тех.нужды'!$A$7,0),IF('ДЭС на тех.нужды+прогрев'!$B$7=1,'ДЭС на тех.нужды+прогрев'!$A$7,0)) -> 0 | O14: =IF(E14="тех. нужды", IF('ДЭС на тех.нужды'!$B$8=1,'ДЭС на тех.нужды'!$A$8,0),IF('ДЭС на тех.нужды+прогрев'!$B$8=1,'ДЭС на тех.нужды+прогрев'!$A$8,0)) -> 0 | P14: =IF(E14="тех. нужды", IF('ДЭС на тех.нужды'!$B$9=1,'ДЭС на тех.нужды'!$A$9,0),IF('ДЭС на тех.нужды+прогрев'!$B$9=1,'ДЭС на тех.нужды+прогрев'!$A$9,0)) -> 0 | Q14: =IF(E14="тех. нужды", IF('ДЭС на тех.нужды'!$B$10=1,'ДЭС на тех.нужды'!$A$10,0),IF('ДЭС на тех.нужды+прогрев'!$B$10=1,'ДЭС на тех.нужды+прогрев'!$A$10,0)) -> 0 | R14: =IF(E14="тех. нужды", IF('ДЭС на тех.нужды'!$B$11=1,'ДЭС на тех.нужды'!$A$11,0),IF('ДЭС на тех.нужды+прогрев'!$B$11=1,'ДЭС на тех.нужды+прогрев'!$A$11,0)) -> 0 | S14: =I14*$D$14 -> 0 | T14: =J14*$D$14 -> 0 | U14: 0 | V14: 24304 | W14: 30752 | X14: 0 | Y14: 0 | Z14: 0 | AA14: 0 | AB14: 0 | AC14: =SUM(S14:AB14)*$AC$11 -> 231785.76 | AD14: 28190.16 | AE14: =ROUND(VLOOKUP($AE$8, 'исх данные'!$B$3:$D$12, 3,FALSE),2) -> 58000
A15: 2015-09-01 | B15: =DAY(EOMONTH(A15,0)) -> 30 | D15: 480 | E15: тех. нужды | F15: 9 | G15: =32.92+25.6+1.24+60.8 -> 120.56 | H15: =IF(E15="тех. Нужды",'ДЭС на тех.нужды'!$E$3,'ДЭС на тех.нужды+прогрев'!$E$3) -> 111 | I15: =IF(E15="тех. нужды", IF('ДЭС на тех.нужды'!$B$2=1,'ДЭС на тех.нужды'!$A$2,0),IF('ДЭС на тех.нужды+прогрев'!$B$2=1,'ДЭС на тех.нужды+прогрев'!$A$2,0)) -> 0 | J15: =IF(E15="тех. нужды", IF('ДЭС на тех.нужды'!$B$3=1,'ДЭС на тех.нужды'!$A$3,0),IF('ДЭС на тех.нужды+прогрев'!$B$3=1,'ДЭС на тех.нужды+прогрев'!$A$3,0)) -> 0 | K15: =IF(E15="тех. нужды", IF('ДЭС на тех.нужды'!$B$4=1,'ДЭС на тех.нужды'!$A$4,0),IF('ДЭС на тех.нужды+прогрев'!$B$4=1,'ДЭС на тех.нужды+прогрев'!$A$4,0)) -> 0 | L15: =IF(E15="тех. нужды", IF('ДЭС на тех.нужды'!$B$5=1,'ДЭС на тех.нужды'!$A$5,0),IF('ДЭС на тех.нужды+прогрев'!$B$5=1,'ДЭС на тех.нужды+прогрев'!$A$5,0)) -> 49 | M15: =IF(E15="тех. нужды", IF('ДЭС на тех.нужды'!$B$6=1,'ДЭС на тех.нужды'!$A$6,0),IF('ДЭС на тех.нужды+прогрев'!$B$6=1,'ДЭС на тех.нужды+прогрев'!$A$6,0)) -> 62 | N15: =IF(E15="тех. нужды", IF('ДЭС на тех.нужды'!$B$7=1,'ДЭС на тех.нужды'!$A$7,0),IF('ДЭС на тех.нужды+прогрев'!$B$7=1,'ДЭС на тех.нужды+прогрев'!$A$7,0)) -> 0 | O15: =IF(E15="тех. нужды", IF('ДЭС на тех.нужды'!$B$8=1,'ДЭС на тех.нужды'!$A$8,0),IF('ДЭС на тех.нужды+прогрев'!$B$8=1,'ДЭС на тех.нужды+прогрев'!$A$8,0)) -> 0 | P15: =IF(E15="тех. нужды", IF('ДЭС на тех.нужды'!$B$9=1,'ДЭС на тех.нужды'!$A$9,0),IF('ДЭС на тех.нужды+прогрев'!$B$9=1,'ДЭС на тех.нужды+прогрев'!$A$9,0)) -> 0 | Q15: =IF(E15="тех. нужды", IF('ДЭС на тех.нужды'!$B$10=1,'ДЭС на тех.нужды'!$A$10,0),IF('ДЭС на тех.нужды+прогрев'!$B$10=1,'ДЭС на тех.нужды+прогрев'!$A$10,0)) -> 0 | R15: =IF(E15="тех. нужды", IF('ДЭС на тех.нужды'!$B$11=1,'ДЭС на тех.нужды'!$A$11,0),IF('ДЭС на тех.нужды+прогрев'!$B$11=1,'ДЭС на тех.нужды+прогрев'!$A$11,0)) -> 0 | S15: =I15*$D$15 -> 0 | T15: =J15*$D$15 -> 0 | U15: 0 | V15: 23520 | W15: 29760 | X15: 0 | Y15: 0 | Z15: 0 | AA15: 0 | AB15: 0 | AC15: =SUM(S15:AB15)*$AC$11 -> 224308.8 | AD15: 27280.8 | AE15: =ROUND(VLOOKUP($AE$8, 'исх данные'!$B$3:$D$12, 3,FALSE),2) -> 58000
A16: 2015-10-01 | B16: 31 | D16: 496 | E16: тех. нужды | F16: 9 | G16: 238.22 | H16: =IF(E16="тех. Нужды",'ДЭС на тех.нужды'!$E$3,'ДЭС на тех.нужды+прогрев'!$E$3) -> 111 | I16: =IF(E16="тех. нужды", IF('ДЭС на тех.нужды'!$B$2=1,'ДЭС на тех.нужды'!$A$2,0),IF('ДЭС на тех.нужды+прогрев'!$B$2=1,'ДЭС на тех.нужды+прогрев'!$A$2,0)) -> 0 | J16: =IF(E16="тех. нужды", IF('ДЭС на тех.нужды'!$B$3=1,'ДЭС на тех.нужды'!$A$3,0),IF('ДЭС на тех.нужды+прогрев'!$B$3=1,'ДЭС на тех.нужды+прогрев'!$A$3,0)) -> 0 | K16: =IF(E16="тех. нужды", IF('ДЭС на тех.нужды'!$B$4=1,'ДЭС на тех.нужды'!$A$4,0),IF('ДЭС на тех.нужды+прогрев'!$B$4=1,'ДЭС на тех.нужды+прогрев'!$A$4,0)) -> 0 | L16: =IF(E16="тех. нужды", IF('ДЭС на тех.нужды'!$B$5=1,'ДЭС на тех.нужды'!$A$5,0),IF('ДЭС на тех.нужды+прогрев'!$B$5=1,'ДЭС на тех.нужды+прогрев'!$A$5,0)) -> 49 | M16: =IF(E16="тех. нужды", IF('ДЭС на тех.нужды'!$B$6=1,'ДЭС на тех.нужды'!$A$6,0),IF('ДЭС на тех.нужды+прогрев'!$B$6=1,'ДЭС на тех.нужды+прогрев'!$A$6,0)) -> 62 | N16: =IF(E16="тех. нужды", IF('ДЭС на тех.нужды'!$B$7=1,'ДЭС на тех.нужды'!$A$7,0),IF('ДЭС на тех.нужды+прогрев'!$B$7=1,'ДЭС на тех.нужды+прогрев'!$A$7,0)) -> 0 | O16: =IF(E16="тех. нужды", IF('ДЭС на тех.нужды'!$B$8=1,'ДЭС на тех.нужды'!$A$8,0),IF('ДЭС на тех.нужды+прогрев'!$B$8=1,'ДЭС на тех.нужды+прогрев'!$A$8,0)) -> 0 | P16: =IF(E16="тех. нужды", IF('ДЭС на тех.нужды'!$B$9=1,'ДЭС на тех.нужды'!$A$9,0),IF('ДЭС на тех.нужды+прогрев'!$B$9=1,'ДЭС на тех.нужды+прогрев'!$A$9,0)) -> 0 | Q16: =IF(E16="тех. нужды", IF('ДЭС на тех.нужды'!$B$10=1,'ДЭС на тех.нужды'!$A$10,0),IF('ДЭС на тех.нужды+прогрев'!$B$10=1,'ДЭС на тех.нужды+прогрев'!$A$10,0)) -> 0 | R16: =IF(E16="тех. нужды", IF('ДЭС на тех.нужды'!$B$11=1,'ДЭС на тех.нужды'!$A$11,0),IF('ДЭС на тех.нужды+прогрев'!$B$11=1,'ДЭС на тех.нужды+прогрев'!$A$11,0)) -> 0 | S16: =I16*$D$16 -> 0 | T16: =J16*$D$16 -> 0 | U16: 0 | V16: 24304 | W16: 30752 | X16: 0 | Y16: 0 | Z16: 0 | AA16: 0 | AB16: 0 | AC16: =SUM(S16:AB16)*$AC$11 -> 231785.76 | AD16: 28190.16 | AE16: =ROUND(VLOOKUP($AE$8, 'исх данные'!$B$3:$D$12, 3,FALSE),2) -> 58000
A17: 2015-11-01 | B17: =DAY(EOMONTH(A17,0)) -> 30 | D17: 480 | E17: прогрев бетона и тех. Нужды | F17: 9 | G17: 238.22 | H17: =IF(E17="тех. Нужды",'ДЭС на тех.нужды'!$E$3,'ДЭС на тех.нужды+прогрев'!$E$3) -> 229 | I17: =IF(E17="тех. нужды", IF('ДЭС на тех.нужды'!$B$2=1,'ДЭС на тех.нужды'!$A$2,0),IF('ДЭС на тех.нужды+прогрев'!$B$2=1,'ДЭС на тех.нужды+прогрев'!$A$2,0)) -> 9 | J17: =IF(E17="тех. нужды", IF('ДЭС на тех.нужды'!$B$3=1,'ДЭС на тех.нужды'!$A$3,0),IF('ДЭС на тех.нужды+прогрев'!$B$3=1,'ДЭС на тех.нужды+прогрев'!$A$3,0)) -> 18 | K17: =IF(E17="тех. нужды", IF('ДЭС на тех.нужды'!$B$4=1,'ДЭС на тех.нужды'!$A$4,0),IF('ДЭС на тех.нужды+прогрев'!$B$4=1,'ДЭС на тех.нужды+прогрев'!$A$4,0)) -> 0 | L17: =IF(E17="тех. нужды", IF('ДЭС на тех.нужды'!$B$5=1,'ДЭС на тех.нужды'!$A$5,0),IF('ДЭС на тех.нужды+прогрев'!$B$5=1,'ДЭС на тех.нужды+прогрев'!$A$5,0)) -> 0 | M17: =IF(E17="тех. нужды", IF('ДЭС на тех.нужды'!$B$6=1,'ДЭС на тех.нужды'!$A$6,0),IF('ДЭС на тех.нужды+прогрев'!$B$6=1,'ДЭС на тех.нужды+прогрев'!$A$6,0)) -> 62 | N17: =IF(E17="тех. нужды", IF('ДЭС на тех.нужды'!$B$7=1,'ДЭС на тех.нужды'!$A$7,0),IF('ДЭС на тех.нужды+прогрев'!$B$7=1,'ДЭС на тех.нужды+прогрев'!$A$7,0)) -> 0 | O17: =IF(E17="тех. нужды", IF('ДЭС на тех.нужды'!$B$8=1,'ДЭС на тех.нужды'!$A$8,0),IF('ДЭС на тех.нужды+прогрев'!$B$8=1,'ДЭС на тех.нужды+прогрев'!$A$8,0)) -> 140 | P17: =IF(E17="тех. нужды", IF('ДЭС на тех.нужды'!$B$9=1,'ДЭС на тех.нужды'!$A$9,0),IF('ДЭС на тех.нужды+прогрев'!$B$9=1,'ДЭС на тех.нужды+прогрев'!$A$9,0)) -> 0 | Q17: =IF(E17="тех. нужды", IF('ДЭС на тех.нужды'!$B$10=1,'ДЭС на тех.нужды'!$A$10,0),IF('ДЭС на тех.нужды+прогрев'!$B$10=1,'ДЭС на тех.нужды+прогрев'!$A$10,0)) -> 0 | R17: =IF(E17="тех. нужды", IF('ДЭС на тех.нужды'!$B$11=1,'ДЭС на тех.нужды'!$A$11,0),IF('ДЭС на тех.нужды+прогрев'!$B$11=1,'ДЭС на тех.нужды+прогрев'!$A$11,0)) -> 0 | S17: =I17*$D$17 -> 4320 | T17: =J17*$D$17 -> 8640 | U17: 0 | V17: 0 | W17: 29760 | X17: 0 | Y17: 67200 | Z17: 0 | AA17: 0 | AB17: 0 | AC17: =SUM(S17:AB17)*$AC$11 -> 462763.2 | AD17: 27280.8 | AE17: =ROUND(VLOOKUP($AE$8, 'исх данные'!$B$3:$D$12, 3,FALSE),2) -> 58000
A18: 2015-12-01 | B18: =DAY(EOMONTH(A18,0)) -> 31 | D18: 496 | E18: прогрев бетона и тех. Нужды | F18: 9 | G18: 238.22 | H18: =IF(E18="тех. Нужды",'ДЭС на тех.нужды'!$E$3,'ДЭС на тех.нужды+прогрев'!$E$3) -> 229 | I18: =IF(E18="тех. нужды", IF('ДЭС на тех.нужды'!$B$2=1,'ДЭС на тех.нужды'!$A$2,0),IF('ДЭС на тех.нужды+прогрев'!$B$2=1,'ДЭС на тех.нужды+прогрев'!$A$2,0)) -> 9 | J18: =IF(E18="тех. нужды", IF('ДЭС на тех.нужды'!$B$3=1,'ДЭС на тех.нужды'!$A$3,0),IF('ДЭС на тех.нужды+прогрев'!$B$3=1,'ДЭС на тех.нужды+прогрев'!$A$3,0)) -> 18 | K18: =IF(E18="тех. нужды", IF('ДЭС на тех.нужды'!$B$4=1,'ДЭС на тех.нужды'!$A$4,0),IF('ДЭС на тех.нужды+прогрев'!$B$4=1,'ДЭС на тех.нужды+прогрев'!$A$4,0)) -> 0 | L18: =IF(E18="тех. нужды", IF('ДЭС на тех.нужды'!$B$5=1,'ДЭС на тех.нужды'!$A$5,0),IF('ДЭС на тех.нужды+прогрев'!$B$5=1,'ДЭС на тех.нужды+прогрев'!$A$5,0)) -> 0 | M18: =IF(E18="тех. нужды", IF('ДЭС на тех.нужды'!$B$6=1,'ДЭС на тех.нужды'!$A$6,0),IF('ДЭС на тех.нужды+прогрев'!$B$6=1,'ДЭС на тех.нужды+прогрев'!$A$6,0)) -> 62 | N18: =IF(E18="тех. нужды", IF('ДЭС на тех.нужды'!$B$7=1,'ДЭС на тех.нужды'!$A$7,0),IF('ДЭС на тех.нужды+прогрев'!$B$7=1,'ДЭС на тех.нужды+прогрев'!$A$7,0)) -> 0 | O18: =IF(E18="тех. нужды", IF('ДЭС на тех.нужды'!$B$8=1,'ДЭС на тех.нужды'!$A$8,0),IF('ДЭС на тех.нужды+прогрев'!$B$8=1,'ДЭС на тех.нужды+прогрев'!$A$8,0)) -> 140 | P18: =IF(E18="тех. нужды", IF('ДЭС на тех.нужды'!$B$9=1,'ДЭС на тех.нужды'!$A$9,0),IF('ДЭС на тех.нужды+прогрев'!$B$9=1,'ДЭС на тех.нужды+прогрев'!$A$9,0)) -> 0 | Q18: =IF(E18="тех. нужды", IF('ДЭС на тех.нужды'!$B$10=1,'ДЭС на тех.нужды'!$A$10,0),IF('ДЭС на тех.нужды+прогрев'!$B$10=1,'ДЭС на тех.нужды+прогрев'!$A$10,0)) -> 0 | R18: =IF(E18="тех. нужды", IF('ДЭС на тех.нужды'!$B$11=1,'ДЭС на тех.нужды'!$A$11,0),IF('ДЭС на тех.нужды+прогрев'!$B$11=1,'ДЭС на тех.нужды+прогрев'!$A$11,0)) -> 0 | S18: =I18*$D$18 -> 4464 | T18: =J18*$D$18 -> 8928 | U18: 0 | V18: 0 | W18: 30752 | X18: 0 | Y18: 69440 | Z18: 0 | AA18: 0 | AB18: 0 | AC18: =SUM(S18:AB18)*$AC$11 -> 478188.64 | AD18: 28190.16 | AE18: =ROUND(VLOOKUP($AE$8, 'исх данные'!$B$3:$D$12, 3,FALSE),2) -> 58000
A19: 2016-01-01 | B19: =DAY(EOMONTH(A19,0)) -> 31 | D19: 496 | E19: прогрев бетона и тех. Нужды | F19: 9 | G19: 238.22 | H19: =IF(E19="тех. Нужды",'ДЭС на тех.нужды'!$E$3,'ДЭС на тех.нужды+прогрев'!$E$3) -> 229 | I19: =IF(E19="тех. нужды", IF('ДЭС на тех.нужды'!$B$2=1,'ДЭС на тех.нужды'!$A$2,0),IF('ДЭС на тех.нужды+прогрев'!$B$2=1,'ДЭС на тех.нужды+прогрев'!$A$2,0)) -> 9 | J19: =IF(E19="тех. нужды", IF('ДЭС на тех.нужды'!$B$3=1,'ДЭС на тех.нужды'!$A$3,0),IF('ДЭС на тех.нужды+прогрев'!$B$3=1,'ДЭС на тех.нужды+прогрев'!$A$3,0)) -> 18 | K19: =IF(E19="тех. нужды", IF('ДЭС на тех.нужды'!$B$4=1,'ДЭС на тех.нужды'!$A$4,0),IF('ДЭС на тех.нужды+прогрев'!$B$4=1,'ДЭС на тех.нужды+прогрев'!$A$4,0)) -> 0 | L19: =IF(E19="тех. нужды", IF('ДЭС на тех.нужды'!$B$5=1,'ДЭС на тех.нужды'!$A$5,0),IF('ДЭС на тех.нужды+прогрев'!$B$5=1,'ДЭС на тех.нужды+прогрев'!$A$5,0)) -> 0 | M19: =IF(E19="тех. нужды", IF('ДЭС на тех.нужды'!$B$6=1,'ДЭС на тех.нужды'!$A$6,0),IF('ДЭС на тех.нужды+прогрев'!$B$6=1,'ДЭС на тех.нужды+прогрев'!$A$6,0)) -> 62 | N19: =IF(E19="тех. нужды", IF('ДЭС на тех.нужды'!$B$7=1,'ДЭС на тех.нужды'!$A$7,0),IF('ДЭС на тех.нужды+прогрев'!$B$7=1,'ДЭС на тех.нужды+прогрев'!$A$7,0)) -> 0 | O19: =IF(E19="тех. нужды", IF('ДЭС на тех.нужды'!$B$8=1,'ДЭС на тех.нужды'!$A$8,0),IF('ДЭС на тех.нужды+прогрев'!$B$8=1,'ДЭС на тех.нужды+прогрев'!$A$8,0)) -> 140 | P19: =IF(E19="тех. нужды", IF('ДЭС на тех.нужды'!$B$9=1,'ДЭС на тех.нужды'!$A$9,0),IF('ДЭС на тех.нужды+прогрев'!$B$9=1,'ДЭС на тех.нужды+прогрев'!$A$9,0)) -> 0 | Q19: =IF(E19="тех. нужды", IF('ДЭС на тех.нужды'!$B$10=1,'ДЭС на тех.нужды'!$A$10,0),IF('ДЭС на тех.нужды+прогрев'!$B$10=1,'ДЭС на тех.нужды+прогрев'!$A$10,0)) -> 0 | R19: =IF(E19="тех. нужды", IF('ДЭС на тех.нужды'!$B$11=1,'ДЭС на тех.нужды'!$A$11,0),IF('ДЭС на тех.нужды+прогрев'!$B$11=1,'ДЭС на тех.нужды+прогрев'!$A$11,0)) -> 0 | S19: =I19*$D$19 -> 4464 | T19: =J19*$D$19 -> 8928 | U19: 0 | V19: 0 | W19: 30752 | X19: 0 | Y19: 69440 | Z19: 0 | AA19: 0 | AB19: 0 | AC19: =SUM(S19:AB19)*$AC$11 -> 478188.64 | AD19: 28190.16 | AE19: =ROUND(VLOOKUP($AE$8, 'исх данные'!$B$3:$D$12, 3,FALSE),2) -> 58000
A20: 2016-02-01 | B20: 29 | D20: 464 | E20: прогрев бетона и тех. Нужды | F20: 9 | G20: =32.92+25.6+1.24+60.8 -> 120.56 | H20: =IF(E20="тех. Нужды",'ДЭС на тех.нужды'!$E$3,'ДЭС на тех.нужды+прогрев'!$E$3) -> 229 | I20: =IF(E20="тех. нужды", IF('ДЭС на тех.нужды'!$B$2=1,'ДЭС на тех.нужды'!$A$2,0),IF('ДЭС на тех.нужды+прогрев'!$B$2=1,'ДЭС на тех.нужды+прогрев'!$A$2,0)) -> 9 | J20: =IF(E20="тех. нужды", IF('ДЭС на тех.нужды'!$B$3=1,'ДЭС на тех.нужды'!$A$3,0),IF('ДЭС на тех.нужды+прогрев'!$B$3=1,'ДЭС на тех.нужды+прогрев'!$A$3,0)) -> 18 | K20: =IF(E20="тех. нужды", IF('ДЭС на тех.нужды'!$B$4=1,'ДЭС на тех.нужды'!$A$4,0),IF('ДЭС на тех.нужды+прогрев'!$B$4=1,'ДЭС на тех.нужды+прогрев'!$A$4,0)) -> 0 | L20: =IF(E20="тех. нужды", IF('ДЭС на тех.нужды'!$B$5=1,'ДЭС на тех.нужды'!$A$5,0),IF('ДЭС на тех.нужды+прогрев'!$B$5=1,'ДЭС на тех.нужды+прогрев'!$A$5,0)) -> 0 | M20: =IF(E20="тех. нужды", IF('ДЭС на тех.нужды'!$B$6=1,'ДЭС на тех.нужды'!$A$6,0),IF('ДЭС на тех.нужды+прогрев'!$B$6=1,'ДЭС на тех.нужды+прогрев'!$A$6,0)) -> 62 | N20: =IF(E20="тех. нужды", IF('ДЭС на тех.нужды'!$B$7=1,'ДЭС на тех.нужды'!$A$7,0),IF('ДЭС на тех.нужды+прогрев'!$B$7=1,'ДЭС на тех.нужды+прогрев'!$A$7,0)) -> 0 | O20: =IF(E20="тех. нужды", IF('ДЭС на тех.нужды'!$B$8=1,'ДЭС на тех.нужды'!$A$8,0),IF('ДЭС на тех.нужды+прогрев'!$B$8=1,'ДЭС на тех.нужды+прогрев'!$A$8,0)) -> 140 | P20: =IF(E20="тех. нужды", IF('ДЭС на тех.нужды'!$B$9=1,'ДЭС на тех.нужды'!$A$9,0),IF('ДЭС на тех.нужды+прогрев'!$B$9=1,'ДЭС на тех.нужды+прогрев'!$A$9,0)) -> 0 | Q20: =IF(E20="тех. нужды", IF('ДЭС на тех.нужды'!$B$10=1,'ДЭС на тех.нужды'!$A$10,0),IF('ДЭС на тех.нужды+прогрев'!$B$10=1,'ДЭС на тех.нужды+прогрев'!$A$10,0)) -> 0 | R20: =IF(E20="тех. нужды", IF('ДЭС на тех.нужды'!$B$11=1,'ДЭС на тех.нужды'!$A$11,0),IF('ДЭС на тех.нужды+прогрев'!$B$11=1,'ДЭС на тех.нужды+прогрев'!$A$11,0)) -> 0 | S20: =I20*$D$20 -> 4176 | T20: =J20*$D$20 -> 8352 | U20: 0 | V20: 0 | W20: 28768 | X20: 0 | Y20: 64960 | Z20: 0 | AA20: 0 | AB20: 0 | AC20: =SUM(S20:AB20)*$AC$11 -> 447337.76 | AD20: 26371.44 | AE20: =ROUND(VLOOKUP($AE$8, 'исх данные'!$B$3:$D$12, 3,FALSE),2) -> 58000
A21: 2016-03-01 | B21: 31 | D21: 496 | E21: прогрев бетона и тех. Нужды | F21: 9 | G21: 120.56 | H21: =IF(E21="тех. Нужды",'ДЭС на тех.нужды'!$E$3,'ДЭС на тех.нужды+прогрев'!$E$3) -> 229 | I21: =IF(E21="тех. нужды", IF('ДЭС на тех.нужды'!$B$2=1,'ДЭС на тех.нужды'!$A$2,0),IF('ДЭС на тех.нужды+прогрев'!$B$2=1,'ДЭС на тех.нужды+прогрев'!$A$2,0)) -> 9 | J21: =IF(E21="тех. нужды", IF('ДЭС на тех.нужды'!$B$3=1,'ДЭС на тех.нужды'!$A$3,0),IF('ДЭС на тех.нужды+прогрев'!$B$3=1,'ДЭС на тех.нужды+прогрев'!$A$3,0)) -> 18 | K21: =IF(E21="тех. нужды", IF('ДЭС на тех.нужды'!$B$4=1,'ДЭС на тех.нужды'!$A$4,0),IF('ДЭС на тех.нужды+прогрев'!$B$4=1,'ДЭС на тех.нужды+прогрев'!$A$4,0)) -> 0 | L21: =IF(E21="тех. нужды", IF('ДЭС на тех.нужды'!$B$5=1,'ДЭС на тех.нужды'!$A$5,0),IF('ДЭС на тех.нужды+прогрев'!$B$5=1,'ДЭС на тех.нужды+прогрев'!$A$5,0)) -> 0 | M21: =IF(E21="тех. нужды", IF('ДЭС на тех.нужды'!$B$6=1,'ДЭС на тех.нужды'!$A$6,0),IF('ДЭС на тех.нужды+прогрев'!$B$6=1,'ДЭС на тех.нужды+прогрев'!$A$6,0)) -> 62 | N21: =IF(E21="тех. нужды", IF('ДЭС на тех.нужды'!$B$7=1,'ДЭС на тех.нужды'!$A$7,0),IF('ДЭС на тех.нужды+прогрев'!$B$7=1,'ДЭС на тех.нужды+прогрев'!$A$7,0)) -> 0 | O21: =IF(E21="тех. нужды", IF('ДЭС на тех.нужды'!$B$8=1,'ДЭС на тех.нужды'!$A$8,0),IF('ДЭС на тех.нужды+прогрев'!$B$8=1,'ДЭС на тех.нужды+прогрев'!$A$8,0)) -> 140 | P21: =IF(E21="тех. нужды", IF('ДЭС на тех.нужды'!$B$9=1,'ДЭС на тех.нужды'!$A$9,0),IF('ДЭС на тех.нужды+прогрев'!$B$9=1,'ДЭС на тех.нужды+прогрев'!$A$9,0)) -> 0 | Q21: =IF(E21="тех. нужды", IF('ДЭС на тех.нужды'!$B$10=1,'ДЭС на тех.нужды'!$A$10,0),IF('ДЭС на тех.нужды+прогрев'!$B$10=1,'ДЭС на тех.нужды+прогрев'!$A$10,0)) -> 0 | R21: =IF(E21="тех. нужды", IF('ДЭС на тех.нужды'!$B$11=1,'ДЭС на тех.нужды'!$A$11,0),IF('ДЭС на тех.нужды+прогрев'!$B$11=1,'ДЭС на тех.нужды+прогрев'!$A$11,0)) -> 0 | S21: =I21*$D$21 -> 4464 | T21: =J21*$D$21 -> 8928 | U21: 0 | V21: 0 | W21: 30752 | X21: 0 | Y21: 69440 | Z21: 0 | AA21: 0 | AB21: 0 | AC21: =SUM(S21:AB21)*$AC$11 -> 478188.64 | AD21: 28190.16 | AE21: =ROUND(VLOOKUP($AE$8, 'исх данные'!$B$3:$D$12, 3,FALSE),2) -> 58000
A22: 2016-04-01 | B22: 30 | D22: 480 | E22: прогрев бетона и тех. Нужды | F22: 9 | G22: 120.56 | H22: =IF(E22="тех. Нужды",'ДЭС на тех.нужды'!$E$3,'ДЭС на тех.нужды+прогрев'!$E$3) -> 229 | I22: =IF(E22="тех. нужды", IF('ДЭС на тех.нужды'!$B$2=1,'ДЭС на тех.нужды'!$A$2,0),IF('ДЭС на тех.нужды+прогрев'!$B$2=1,'ДЭС на тех.нужды+прогрев'!$A$2,0)) -> 9 | J22: =IF(E22="тех. нужды", IF('ДЭС на тех.нужды'!$B$3=1,'ДЭС на тех.нужды'!$A$3,0),IF('ДЭС на тех.нужды+прогрев'!$B$3=1,'ДЭС на тех.нужды+прогрев'!$A$3,0)) -> 18 | K22: =IF(E22="тех. нужды", IF('ДЭС на тех.нужды'!$B$4=1,'ДЭС на тех.нужды'!$A$4,0),IF('ДЭС на тех.нужды+прогрев'!$B$4=1,'ДЭС на тех.нужды+прогрев'!$A$4,0)) -> 0 | L22: =IF(E22="тех. нужды", IF('ДЭС на тех.нужды'!$B$5=1,'ДЭС на тех.нужды'!$A$5,0),IF('ДЭС на тех.нужды+прогрев'!$B$5=1,'ДЭС на тех.нужды+прогрев'!$A$5,0)) -> 0 | M22: =IF(E22="тех. нужды", IF('ДЭС на тех.нужды'!$B$6=1,'ДЭС на тех.нужды'!$A$6,0),IF('ДЭС на тех.нужды+прогрев'!$B$6=1,'ДЭС на тех.нужды+прогрев'!$A$6,0)) -> 62 | N22: =IF(E22="тех. нужды", IF('ДЭС на тех.нужды'!$B$7=1,'ДЭС на тех.нужды'!$A$7,0),IF('ДЭС на тех.нужды+прогрев'!$B$7=1,'ДЭС на тех.нужды+прогрев'!$A$7,0)) -> 0 | O22: =IF(E22="тех. нужды", IF('ДЭС на тех.нужды'!$B$8=1,'ДЭС на тех.нужды'!$A$8,0),IF('ДЭС на тех.нужды+прогрев'!$B$8=1,'ДЭС на тех.нужды+прогрев'!$A$8,0)) -> 140 | P22: =IF(E22="тех. нужды", IF('ДЭС на тех.нужды'!$B$9=1,'ДЭС на тех.нужды'!$A$9,0),IF('ДЭС на тех.нужды+прогрев'!$B$9=1,'ДЭС на тех.нужды+прогрев'!$A$9,0)) -> 0 | Q22: =IF(E22="тех. нужды", IF('ДЭС на тех.нужды'!$B$10=1,'ДЭС на тех.нужды'!$A$10,0),IF('ДЭС на тех.нужды+прогрев'!$B$10=1,'ДЭС на тех.нужды+прогрев'!$A$10,0)) -> 0 | R22: =IF(E22="тех. нужды", IF('ДЭС на тех.нужды'!$B$11=1,'ДЭС на тех.нужды'!$A$11,0),IF('ДЭС на тех.нужды+прогрев'!$B$11=1,'ДЭС на тех.нужды+прогрев'!$A$11,0)) -> 0 | S22: =I22*$D$22 -> 4320 | T22: =J22*$D$22 -> 8640 | U22: 0 | V22: 0 | W22: 29760 | X22: 0 | Y22: 67200 | Z22: 0 | AA22: 0 | AB22: 0 | AC22: =SUM(S22:AB22)*$AC$11 -> 462763.2 | AD22: 27280.8 | AE22: =ROUND(VLOOKUP($AE$8, 'исх данные'!$B$3:$D$12, 3,FALSE),2) -> 58000
A23: 2016-05-01 | B23: 31 | D23: 496 | E23: тех. нужды | F23: 9 | G23: 120.56 | H23: =IF(E23="тех. Нужды",'ДЭС на тех.нужды'!$E$3,'ДЭС на тех.нужды+прогрев'!$E$3) -> 111 | I23: =IF(E23="тех. нужды", IF('ДЭС на тех.нужды'!$B$2=1,'ДЭС на тех.нужды'!$A$2,0),IF('ДЭС на тех.нужды+прогрев'!$B$2=1,'ДЭС на тех.нужды+прогрев'!$A$2,0)) -> 0 | J23: =IF(E23="тех. нужды", IF('ДЭС на тех.нужды'!$B$3=1,'ДЭС на тех.нужды'!$A$3,0),IF('ДЭС на тех.нужды+прогрев'!$B$3=1,'ДЭС на тех.нужды+прогрев'!$A$3,0)) -> 0 | K23: =IF(E23="тех. нужды", IF('ДЭС на тех.нужды'!$B$4=1,'ДЭС на тех.нужды'!$A$4,0),IF('ДЭС на тех.нужды+прогрев'!$B$4=1,'ДЭС на тех.нужды+прогрев'!$A$4,0)) -> 0 | L23: =IF(E23="тех. нужды", IF('ДЭС на тех.нужды'!$B$5=1,'ДЭС на тех.нужды'!$A$5,0),IF('ДЭС на тех.нужды+прогрев'!$B$5=1,'ДЭС на тех.нужды+прогрев'!$A$5,0)) -> 49 | M23: =IF(E23="тех. нужды", IF('ДЭС на тех.нужды'!$B$6=1,'ДЭС на тех.нужды'!$A$6,0),IF('ДЭС на тех.нужды+прогрев'!$B$6=1,'ДЭС на тех.нужды+прогрев'!$A$6,0)) -> 62 | N23: =IF(E23="тех. нужды", IF('ДЭС на тех.нужды'!$B$7=1,'ДЭС на тех.нужды'!$A$7,0),IF('ДЭС на тех.нужды+прогрев'!$B$7=1,'ДЭС на тех.нужды+прогрев'!$A$7,0)) -> 0 | O23: =IF(E23="тех. нужды", IF('ДЭС на тех.нужды'!$B$8=1,'ДЭС на тех.нужды'!$A$8,0),IF('ДЭС на тех.нужды+прогрев'!$B$8=1,'ДЭС на тех.нужды+прогрев'!$A$8,0)) -> 0 | P23: =IF(E23="тех. нужды", IF('ДЭС на тех.нужды'!$B$9=1,'ДЭС на тех.нужды'!$A$9,0),IF('ДЭС на тех.нужды+прогрев'!$B$9=1,'ДЭС на тех.нужды+прогрев'!$A$9,0)) -> 0 | Q23: =IF(E23="тех. нужды", IF('ДЭС на тех.нужды'!$B$10=1,'ДЭС на тех.нужды'!$A$10,0),IF('ДЭС на тех.нужды+прогрев'!$B$10=1,'ДЭС на тех.нужды+прогрев'!$A$10,0)) -> 0 | R23: =IF(E23="тех. нужды", IF('ДЭС на тех.нужды'!$B$11=1,'ДЭС на тех.нужды'!$A$11,0),IF('ДЭС на тех.нужды+прогрев'!$B$11=1,'ДЭС на тех.нужды+прогрев'!$A$11,0)) -> 0 | S23: =I23*$D$23 -> 0 | T23: =J23*$D$23 -> 0 | U23: 0 | V23: 24304 | W23: 30752 | X23: 0 | Y23: 0 | Z23: 0 | AA23: 0 | AB23: 0 | AC23: =SUM(S23:AB23)*$AC$11 -> 231785.76 | AD23: 28190.16 | AE23: =ROUND(VLOOKUP($AE$8, 'исх данные'!$B$3:$D$12, 3,FALSE),2) -> 58000
A24: 2016-06-01 | B24: 30 | D24: 480 | E24: тех. нужды | F24: 9 | G24: 120.56 | H24: =IF(E24="тех. Нужды",'ДЭС на тех.нужды'!$E$3,'ДЭС на тех.нужды+прогрев'!$E$3) -> 111 | I24: =IF(E24="тех. нужды", IF('ДЭС на тех.нужды'!$B$2=1,'ДЭС на тех.нужды'!$A$2,0),IF('ДЭС на тех.нужды+прогрев'!$B$2=1,'ДЭС на тех.нужды+прогрев'!$A$2,0)) -> 0 | J24: =IF(E24="тех. нужды", IF('ДЭС на тех.нужды'!$B$3=1,'ДЭС на тех.нужды'!$A$3,0),IF('ДЭС на тех.нужды+прогрев'!$B$3=1,'ДЭС на тех.нужды+прогрев'!$A$3,0)) -> 0 | K24: =IF(E24="тех. нужды", IF('ДЭС на тех.нужды'!$B$4=1,'ДЭС на тех.нужды'!$A$4,0),IF('ДЭС на тех.нужды+прогрев'!$B$4=1,'ДЭС на тех.нужды+прогрев'!$A$4,0)) -> 0 | L24: =IF(E24="тех. нужды", IF('ДЭС на тех.нужды'!$B$5=1,'ДЭС на тех.нужды'!$A$5,0),IF('ДЭС на тех.нужды+прогрев'!$B$5=1,'ДЭС на тех.нужды+прогрев'!$A$5,0)) -> 49 | M24: =IF(E24="тех. нужды", IF('ДЭС на тех.нужды'!$B$6=1,'ДЭС на тех.нужды'!$A$6,0),IF('ДЭС на тех.нужды+прогрев'!$B$6=1,'ДЭС на тех.нужды+прогрев'!$A$6,0)) -> 62 | N24: =IF(E24="тех. нужды", IF('ДЭС на тех.нужды'!$B$7=1,'ДЭС на тех.нужды'!$A$7,0),IF('ДЭС на тех.нужды+прогрев'!$B$7=1,'ДЭС на тех.нужды+прогрев'!$A$7,0)) -> 0 | O24: =IF(E24="тех. нужды", IF('ДЭС на тех.нужды'!$B$8=1,'ДЭС на тех.нужды'!$A$8,0),IF('ДЭС на тех.нужды+прогрев'!$B$8=1,'ДЭС на тех.нужды+прогрев'!$A$8,0)) -> 0 | P24: =IF(E24="тех. нужды", IF('ДЭС на тех.нужды'!$B$9=1,'ДЭС на тех.нужды'!$A$9,0),IF('ДЭС на тех.нужды+прогрев'!$B$9=1,'ДЭС на тех.нужды+прогрев'!$A$9,0)) -> 0 | Q24: =IF(E24="тех. нужды", IF('ДЭС на тех.нужды'!$B$10=1,'ДЭС на тех.нужды'!$A$10,0),IF('ДЭС на тех.нужды+прогрев'!$B$10=1,'ДЭС на тех.нужды+прогрев'!$A$10,0)) -> 0 | R24: =IF(E24="тех. нужды", IF('ДЭС на тех.нужды'!$B$11=1,'ДЭС на тех.нужды'!$A$11,0),IF('ДЭС на тех.нужды+прогрев'!$B$11=1,'ДЭС на тех.нужды+прогрев'!$A$11,0)) -> 0 | S24: =I24*$D$24 -> 0 | T24: =J24*$D$24 -> 0 | U24: 0 | V24: 23520 | W24: 29760 | X24: 0 | Y24: 0 | Z24: 0 | AA24: 0 | AB24: 0 | AC24: =SUM(S24:AB24)*$AC$11 -> 224308.8 | AD24: 27280.8 | AE24: =ROUND(VLOOKUP($AE$8, 'исх данные'!$B$3:$D$12, 3,FALSE),2) -> 58000
A25: 2016-07-01 | B25: 31 | D25: 496 | E25: тех. нужды | F25: 9 | G25: 120.56 | H25: =IF(E25="тех. Нужды",'ДЭС на тех.нужды'!$E$3,'ДЭС на тех.нужды+прогрев'!$E$3) -> 111 | I25: =IF(E25="тех. нужды", IF('ДЭС на тех.нужды'!$B$2=1,'ДЭС на тех.нужды'!$A$2,0),IF('ДЭС на тех.нужды+прогрев'!$B$2=1,'ДЭС на тех.нужды+прогрев'!$A$2,0)) -> 0 | J25: =IF(E25="тех. нужды", IF('ДЭС на тех.нужды'!$B$3=1,'ДЭС на тех.нужды'!$A$3,0),IF('ДЭС на тех.нужды+прогрев'!$B$3=1,'ДЭС на тех.нужды+прогрев'!$A$3,0)) -> 0 | K25: =IF(E25="тех. нужды", IF('ДЭС на тех.нужды'!$B$4=1,'ДЭС на тех.нужды'!$A$4,0),IF('ДЭС на тех.нужды+прогрев'!$B$4=1,'ДЭС на тех.нужды+прогрев'!$A$4,0)) -> 0 | L25: =IF(E25="тех. нужды", IF('ДЭС на тех.нужды'!$B$5=1,'ДЭС на тех.нужды'!$A$5,0),IF('ДЭС на тех.нужды+прогрев'!$B$5=1,'ДЭС на тех.нужды+прогрев'!$A$5,0)) -> 49 | M25: =IF(E25="тех. нужды", IF('ДЭС на тех.нужды'!$B$6=1,'ДЭС на тех.нужды'!$A$6,0),IF('ДЭС на тех.нужды+прогрев'!$B$6=1,'ДЭС на тех.нужды+прогрев'!$A$6,0)) -> 62 | N25: =IF(E25="тех. нужды", IF('ДЭС на тех.нужды'!$B$7=1,'ДЭС на тех.нужды'!$A$7,0),IF('ДЭС на тех.нужды+прогрев'!$B$7=1,'ДЭС на тех.нужды+прогрев'!$A$7,0)) -> 0 | O25: =IF(E25="тех. нужды", IF('ДЭС на тех.нужды'!$B$8=1,'ДЭС на тех.нужды'!$A$8,0),IF('ДЭС на тех.нужды+прогрев'!$B$8=1,'ДЭС на тех.нужды+прогрев'!$A$8,0)) -> 0 | P25: =IF(E25="тех. нужды", IF('ДЭС на тех.нужды'!$B$9=1,'ДЭС на тех.нужды'!$A$9,0),IF('ДЭС на тех.нужды+прогрев'!$B$9=1,'ДЭС на тех.нужды+прогрев'!$A$9,0)) -> 0 | Q25: =IF(E25="тех. нужды", IF('ДЭС на тех.нужды'!$B$10=1,'ДЭС на тех.нужды'!$A$10,0),IF('ДЭС на тех.нужды+прогрев'!$B$10=1,'ДЭС на тех.нужды+прогрев'!$A$10,0)) -> 0 | R25: =IF(E25="тех. нужды", IF('ДЭС на тех.нужды'!$B$11=1,'ДЭС на тех.нужды'!$A$11,0),IF('ДЭС на тех.нужды+прогрев'!$B$11=1,'ДЭС на тех.нужды+прогрев'!$A$11,0)) -> 0 | S25: =I25*$D$25 -> 0 | T25: =J25*$D$25 -> 0 | U25: 0 | V25: 24304 | W25: 30752 | X25: 0 | Y25: 0 | Z25: 0 | AA25: 0 | AB25: 0 | AC25: =SUM(S25:AB25)*$AC$11 -> 231785.76 | AD25: 28190.16 | AE25: =ROUND(VLOOKUP($AE$8, 'исх данные'!$B$3:$D$12, 3,FALSE),2) -> 58000
A26: 2016-08-01 | B26: 31 | D26: 496 | E26: тех. нужды | F26: 9 | G26: 120.56 | H26: =IF(E26="тех. Нужды",'ДЭС на тех.нужды'!$E$3,'ДЭС на тех.нужды+прогрев'!$E$3) -> 111 | I26: =IF(E26="тех. нужды", IF('ДЭС на тех.нужды'!$B$2=1,'ДЭС на тех.нужды'!$A$2,0),IF('ДЭС на тех.нужды+прогрев'!$B$2=1,'ДЭС на тех.нужды+прогрев'!$A$2,0)) -> 0 | J26: =IF(E26="тех. нужды", IF('ДЭС на тех.нужды'!$B$3=1,'ДЭС на тех.нужды'!$A$3,0),IF('ДЭС на тех.нужды+прогрев'!$B$3=1,'ДЭС на тех.нужды+прогрев'!$A$3,0)) -> 0 | K26: =IF(E26="тех. нужды", IF('ДЭС на тех.нужды'!$B$4=1,'ДЭС на тех.нужды'!$A$4,0),IF('ДЭС на тех.нужды+прогрев'!$B$4=1,'ДЭС на тех.нужды+прогрев'!$A$4,0)) -> 0 | L26: =IF(E26="тех. нужды", IF('ДЭС на тех.нужды'!$B$5=1,'ДЭС на тех.нужды'!$A$5,0),IF('ДЭС на тех.нужды+прогрев'!$B$5=1,'ДЭС на тех.нужды+прогрев'!$A$5,0)) -> 49 | M26: =IF(E26="тех. нужды", IF('ДЭС на тех.нужды'!$B$6=1,'ДЭС на тех.нужды'!$A$6,0),IF('ДЭС на тех.нужды+прогрев'!$B$6=1,'ДЭС на тех.нужды+прогрев'!$A$6,0)) -> 62 | N26: =IF(E26="тех. нужды", IF('ДЭС на тех.нужды'!$B$7=1,'ДЭС на тех.нужды'!$A$7,0),IF('ДЭС на тех.нужды+прогрев'!$B$7=1,'ДЭС на тех.нужды+прогрев'!$A$7,0)) -> 0 | O26: =IF(E26="тех. нужды", IF('ДЭС на тех.нужды'!$B$8=1,'ДЭС на тех.нужды'!$A$8,0),IF('ДЭС на тех.нужды+прогрев'!$B$8=1,'ДЭС на тех.нужды+прогрев'!$A$8,0)) -> 0 | P26: =IF(E26="тех. нужды", IF('ДЭС на тех.нужды'!$B$9=1,'ДЭС на тех.нужды'!$A$9,0),IF('ДЭС на тех.нужды+прогрев'!$B$9=1,'ДЭС на тех.нужды+прогрев'!$A$9,0)) -> 0 | Q26: =IF(E26="тех. нужды", IF('ДЭС на тех.нужды'!$B$10=1,'ДЭС на тех.нужды'!$A$10,0),IF('ДЭС на тех.нужды+прогрев'!$B$10=1,'ДЭС на тех.нужды+прогрев'!$A$10,0)) -> 0 | R26: =IF(E26="тех. нужды", IF('ДЭС на тех.нужды'!$B$11=1,'ДЭС на тех.нужды'!$A$11,0),IF('ДЭС на тех.нужды+прогрев'!$B$11=1,'ДЭС на тех.нужды+прогрев'!$A$11,0)) -> 0 | S26: =I26*$D$26 -> 0 | T26: =J26*$D$26 -> 0 | U26: 0 | V26: 24304 | W26: 30752 | X26: 0 | Y26: 0 | Z26: 0 | AA26: 0 | AB26: 0 | AC26: =SUM(S26:AB26)*$AC$11 -> 231785.76 | AD26: 28190.16 | AE26: =ROUND(VLOOKUP($AE$8, 'исх данные'!$B$3:$D$12, 3,FALSE),2) -> 58000
AC27: =SUM(AC12:AC26) -> 4871071.04 | AD27: =SUM(AD12:AD26) -> 416486.88 | AE27: =SUM(AE12:AE26) -> 870000
AC28: Компенсация ЭЭ | AD28: 0.8 | AE28: =AC27*AD28 -> 3896856.832
AC29: ИТОГО затраты организации: | AE29: =SUM(AE28,AE27,AD27) -> 5183343.712

Sheet ДЭС на тех.нужды+прогрев
A1: кВт при 70% загрузке ДЭС
A2: 9 | B2: =MOD(TRUNC($E$8*2/2^ROW()),2) -> 1 | D2: Нагрузка без учета питания от гор.сетей | E2: ='калькулятор ДЭС'!G17-'калькулятор ДЭС'!F17 -> 229.22
A3: 18 | B3: =MOD(TRUNC($E$8*2/2^ROW()),2) -> 1 | D3: Суммарная нагрузка от ДЭС | E3: =SUMPRODUCT(A2:A13,B2:B13) -> 229
A4: 25 | B4: =MOD(TRUNC($E$8*2/2^ROW()),2) -> 0 | D4: Модуль отклонения | E4: =ABS(E2-E3) -> 0.22
A5: 49 | B5: =MOD(TRUNC($E$8*2/2^ROW()),2) -> 0
A6: 62 | B6: =MOD(TRUNC($E$8*2/2^ROW()),2) -> 1
A7: 76 | B7: =MOD(TRUNC($E$8*2/2^ROW()),2) -> 0
A8: 140 | B8: =MOD(TRUNC($E$8*2/2^ROW()),2) -> 1 | D8: № решения | E8: =MAX((ABS(E2-MMULT(MOD(TRUNC(ROW(2:4096)/2^TRANSPOSE(ROW(2:13)-1)),2)*TRANSPOSE(A2:A13),ROW(2:13)^0))=MIN(ABS(E2-MMULT(MOD(TRUNC(ROW(2:4096)/2^TRANSPOSE(ROW(2:13)-1)),2)*TRANSPOSE(A2:A13),ROW(2:13)^0))))*ROW(2:4096)) -> 2215
A9: 196 | B9: =MOD(TRUNC($E$8*2/2^ROW()),2) -> 0
A10: 224 | B10: =MOD(TRUNC($E$8*2/2^ROW()),2) -> 0
A11: 280 | B11: =MOD(TRUNC($E$8*2/2^ROW()),2) -> 0
A16: кВт при 70% загрузке ДЭС
A17: 9 | B17: =MOD(TRUNC($E$23*2/2^ROW()),2) -> 0 | D17: Нагрузка без учета питания от гор.сетей | E17: 229
A18: 18 | B18: =MOD(TRUNC($E$23*2/2^ROW()),2) -> 0 | D18: Суммарная нагрузка от ДЭС | E18: =SUMPRODUCT(A17:A28,B17:B28) -> 0
A19: 25 | B19: 0 | D19: Модуль отклонения | E19: =ABS(E17-E18) -> 229
A20: 49 | B20: 0
A21: 62 | B21: 0
A22: 76 | B22: 0
A23: 140 | B23: 0 | D23: № решения | E23: =MAX((ABS(E17-MMULT(MOD(TRUNC(ROW(17:4111)/2^TRANSPOSE(ROW(17:28)-1)),2)*TRANSPOSE(A17:A28),ROW(17:28)^0))=MIN(ABS(E17-MMULT(MOD(TRUNC(ROW(17:4111)/2^TRANSPOSE(ROW(17:28)-1)),2)*TRANSPOSE(A17:A28),ROW(17:28)^0))))*ROW(17:4111)) -> 4111
A24: 196 | B24: 0
A25: 224 | B25: 0
A26: 280 | B26: 0

Sheet ДЭС на тех.нужды
A1: кВт при 70% загрузке ДЭС
A2: ='калькулятор ДЭС'!I10 -> 9 | B2: =MOD(TRUNC($E$8*2/2^ROW()),2) -> 0 | D2: Нагрузка без учета питания от гор.сетей | E2: ='калькулятор ДЭС'!G12-'калькулятор ДЭС'!F12 -> 111.56
A3: ='калькулятор ДЭС'!J10 -> 18 | B3: =MOD(TRUNC($E$8*2/2^ROW()),2) -> 0 | D3: Суммарная нагрузка от ДЭС | E3: =SUMPRODUCT(A2:A13,B2:B13) -> 111
A4: ='калькулятор ДЭС'!K10 -> 25 | B4: 0 | D4: Модуль отклонения | E4: =ABS(E2-E3) -> 0.56
A5: ='калькулятор ДЭС'!L10 -> 49 | B5: 1
A6: ='калькулятор ДЭС'!M10 -> 62 | B6: 1
A7: ='калькулятор ДЭС'!N10 -> 76 | B7: 0
A8: ='калькулятор ДЭС'!O10 -> 140 | B8: 0 | D8: № решения | E8: =MAX((ABS(E2-MMULT(MOD(TRUNC(ROW(2:4096)/2^TRANSPOSE(ROW(2:13)-1)),2)*TRANSPOSE(A2:A13),ROW(2:13)^0))=MIN(ABS(E2-MMULT(MOD(TRUNC(ROW(2:4096)/2^TRANSPOSE(ROW(2:13)-1)),2)*TRANSPOSE(A2:A13),ROW(2:13)^0))))*ROW(2:4096)) -> 2097
A9: ='калькулятор ДЭС'!P10 -> 196 | B9: 0
A10: ='калькулятор ДЭС'!Q10 -> 224 | B10: 0
A11: ='калькулятор ДЭС'!R10 -> 280 | B11: 0

Sheet исх данные
B2: ДЭС | C2: стоимость 1 м*час работы | D2: стоимость 1 мес. Резерва | E2: кВА | F2: cosф | G2: кВт
B3: AKSA APD 16, | C3: 280 | D3: 43000 | E3: 16 | F3: 0.8 | G3: =E3*F3 -> 12.8
B4: Wilson P33 | C4: 350 | D4: 46000 | E4: 33 | F4: 0.8 | G4: 26.4
B5: AKSA APD 44 | C5: 400 | D5: 49000 | E5: 44 | F5: 0.8 | G5: 35.2
B6: Wilson P88 | C6: 616 | D6: 52000 | E6: 88 | F6: 0.8 | G6: 70.4
B7: Wilson P110 | C7: 760 | D7: 55000 | E7: 110 | F7: 0.8 | G7: 88
B8: Wilson P135 | C8: 800 | D8: 58000 | E8: 135 | F8: 0.8 | G8: 108
B9: Wilson P250 | C9: 1180 | D9: 61000 | E9: 250 | F9: 0.8 | G9: 200
B10: Wilson P350 | C10: 1475 | D10: 64000 | E10: 350 | F10: 0.8 | G10: 280
B11: Wilson P400 | C11: 1800 | D11: 67000 | E11: 400 | F11: 0.8 | G11: 320
B12: Wilson P500 | C12: 2150 | D12: 70000 | E12: 500 | F12: 0.8 | G12: 400
B16: тех. нужды
B17: прогрев бетона и тех. Нужды
G18: 2015 | H18: 2015-01-01
H19: 2015-02-01
H20: 2015-03-01
H21: 2015-04-01
H22: 2015-05-01
H23: 2015-06-01
H24: 2015-07-01
H25: 2015-08-01
H26: 2015-09-01
H27: 2015-10-01
H28: 2015-11-01
H29: 2015-12-01
G31: 2016 | H31: 2016-01-01
H32: 2016-02-01
H33: 2016-03-01
H34: 2016-04-01
H35: 2016-05-01
H36: 2016-06-01
H37: 2016-07-01
H38: 2016-08-01
H39: 2016-09-01
H40: 2016-10-01
H41: 2016-11-01
H42: 2016-12-01
G44: 2017 | H44: 2017-01-01
H45: 2017-02-01
H46: 2017-03-01
H47: 2017-04-01
H48: 2017-05-01
H49: 2017-06-01
H50: 2017-07-01
H51: 2017-08-01
H52: 2017-09-01
H53: 2017-10-01
H54: 2017-11-01
H55: 2017-12-01
